fUST/lending_fUST_20250407
["ID","MTS","AMOUNT","RATE_DAILY","PERIOD"]
[357384783,1744031438426,-500.0,0.00039519,2]
[357384784,1744031438437,-500.0,0.00039519,15]
[357384785,1744031438450,-500.0,0.00039519,15]
[357384786,1744031438460,-500.0,0.00039519,2]
[357384787,1744031438469,-500.0,0.00039519,2]
[357384788,1744031438480,-558.88232989,0.0003952,7]
[357384789,1744031438495,-2522.17497543,0.0003952,7]
[357384790,1744031438504,-10111.35894766,0.0003952,7]
[357384791,1744031438514,-160.0,0.0003952,7]
[357384792,1744031438525,-419.36665037,0.0003952,7]
[357384793,1744031438536,-1225.79033608,0.00039912,120]
[357384794,1744031438546,-500.0,0.00039999,15]
[357384795,1744031438557,-500.0,0.00039999,15]
[357384796,1744031438567,-2773.36831882,0.00039999,120]
[357384797,1744031438577,-151.0,0.0004,14]
[357384798,1744031438586,-151.0,0.0004,14]
[357384799,1744031438596,-151.0,0.0004,14]
[357384800,1744031438605,-151.0,0.0004,14]
[357384801,1744031438614,-500.0,0.0004,120]
[357384802,1744031438624,-500.0,0.0004,120]
[357384803,1744031438634,-186.725737,0.0004,14]
[357384804,1744031438643,-186.725737,0.0004,14]
[357384805,1744031438653,-186.725737,0.0004,14]
[357384806,1744031438663,-186.725737,0.0004,14]
[357384807,1744031438674,-151.0,0.0004,14]
[357384808,1744031438683,-151.0,0.0004,14]
[357384809,1744031438693,-500.0,0.0004,120]
[357384810,1744031438702,-500.0,0.0004,120]
[357384811,1744031438712,-500.0,0.0004,120]
[357384812,1744031438721,-500.0,0.0004,120]
[357384813,1744031438731,-500.0,0.0004,120]
[357384814,1744031438740,-151.0,0.0004,14]
[357384815,1744031438749,-151.0,0.0004,14]
[357384816,1744031438758,-500.0,0.0004,120]
[357384817,1744031438767,-500.0,0.0004,120]
[357384818,1744031438776,-151.0,0.0004,14]
[357384819,1744031438786,-151.0,0.0004,14]
[357384820,1744031438795,-500.0,0.0004,120]
[357384821,1744031438804,-151.0,0.0004,14]
[357384822,1744031438814,-289.747733,0.0004,14]
[357384823,1744031438824,-9927.89154755,0.0004,2]
[357384824,1744031438833,-200.0,0.0004053,57]
[357384825,1744031438843,-376.19878293,0.0004074,5]
[357384826,1744031438853,-541.0,0.0004098,2]
[357384827,1744031438862,-2255.0,0.0004098,2]
[357384828,1744031438871,-401.0,0.0004098,2]
[357384829,1744031438881,-634.0,0.00041,30]
[357384830,1744031438890,-1721.34537749,0.00041054,28]
[357384831,1744031438899,-509.190793,0.00041211,120]
[357384832,1744031438908,-161.61,0.000413,31]
[357384833,1744031438917,-161.61,0.000413,31]
[357384834,1744031438928,-161.61,0.000413,31]
[357384835,1744031438937,-161.61,0.000413,31]
[357384836,1744031438950,-161.61,0.000413,31]
[357384837,1744031438959,-161.61,0.000413,31]
[357384838,1744031438968,-161.61,0.000413,31]
[357384839,1744031438977,-161.61,0.000413,31]
[357384840,1744031438986,-161.61,0.000413,31]
[357384841,1744031438995,-161.61,0.000413,31]
[357384842,1744031439004,-161.61,0.000413,31]
[357384843,1744031439013,-161.61,0.000413,31]
[357384844,1744031439022,-161.61,0.000413,31]
[357384845,1744031439031,-161.61,0.000413,31]
[357384846,1744031439040,-161.61,0.000413,31]
[357384847,1744031439049,-161.61,0.000413,31]
[357384848,1744031439058,-161.61,0.000413,31]
[357384849,1744031439067,-161.61,0.000413,31]
[357384850,1744031439076,-161.61,0.000413,31]
[357384851,1744031439086,-161.61,0.000413,31]
[357384852,1744031439095,-161.61,0.000413,31]
[357384853,1744031439104,-161.61,0.000413,31]
[357384854,1744031439113,-161.61,0.000413,31]
[357384855,1744031439122,-161.61,0.000413,31]
[357384856,1744031439131,-339.7179,0.00041391,60]
[357384857,1744031439140,-151.0,0.00041635,15]
[357384858,1744031439150,-151.0,0.00041635,120]
[357384859,1744031439158,-186.725737,0.00041635,120]
[357384860,1744031439167,-186.725737,0.00041635,120]
[357384861,1744031439178,-151.0,0.00041635,120]
[357384862,1744031439187,-151.0,0.00041635,120]
[357384863,1744031439197,-151.0,0.00041635,120]
[357384864,1744031439206,-151.0,0.00041691,15]
[357384865,1744031439215,-151.0,0.000417,120]
[357384866,1744031439451,-151.0,0.000417,120]
[357384867,1744031439460,-12500.0,0.00041917,10]
[357384868,1744031439470,-849.23283574,0.00041917,10]
[357384869,1744031439481,-500.0,0.00041973,10]
[357384870,1744031439491,-500.0,0.00041973,10]
[357384871,1744031439500,-500.0,0.00041973,10]
[357384872,1744031439509,-500.0,0.00041973,10]
[357384873,1744031439520,-500.0,0.00041973,10]
[357384874,1744031439529,-500.0,0.00041973,2]
[357384875,1744031439539,-500.0,0.00041973,10]
[357384876,1744031439548,-500.0,0.00041973,10]
[357384877,1744031439557,-17504.1510765,0.00041993,3]
[357384878,1744031439567,-151.0,0.00042,120]
[357384879,1744031439577,-186.725737,0.00042,120]
[357384880,1744031439587,-186.725737,0.00042,120]
[357384881,1744031439596,-500.0,0.00042,120]
[357384882,1744031439605,-151.0,0.00042,120]
[357384883,1744031439614,-500.0,0.00042,120]
[357384884,1744031439624,-359.9796305,0.00042013,30]
[357384885,1744031439633,-359.9796305,0.00042013,30]
[357384886,1744031439642,-359.9796305,0.00042013,30]
[357384887,1744031439651,-359.9796305,0.00042013,30]
[357384888,1744031439660,-359.9796305,0.00042013,30]
[357384889,1744031439669,-359.9796305,0.00042013,30]
[357384890,1744031439680,-359.9796305,0.00042013,30]
[357384891,1744031439689,-359.9796305,0.00042013,30]
[357384892,1744031439699,-800.0,0.00042243,120]
[357384893,1744031439708,-8752.07553825,0.00042248,3]
[357384894,1744031439717,-800.0,0.00042253,120]
[357384895,1744031439727,-8752.07553825,0.00042258,3]
[357384896,1744031439736,-800.0,0.00042263,120]
[357384897,1744031439745,-210.43057469,0.00042273,7]
[357384898,1744031439755,-2773.36831882,0.00042298,120]
[357384899,1744031439765,-1393.3036761,0.00042582,4]
[357384900,1744031439774,-186.66862855,0.00042622,2]
[357384901,1744031439783,-1721.34537749,0.00042688,28]
[357384902,1744031439792,-326.19787568,0.00042871,31]
[357384903,1744031439802,-602.77158375,0.00042871,31]
[357384904,1744031439811,-8752.07553825,0.00042872,3]
[357384905,1744031439821,-783.73948285,0.00042882,3]
[357384906,1744031439830,-500.0,0.000429,10]
[357384907,1744031439839,-153.751758,0.00043,15]
[357384908,1744031439849,-151.0,0.00043,120]
[357384909,1744031439858,-186.725737,0.00043,120]
[357384910,1744031439868,-186.725737,0.00043,120]
[357384911,1744031439877,-289.86658,0.00043,120]
[357384912,1744031439886,-151.0,0.00043,120]
[357384913,1744031439894,-151.0,0.00043,120]
[357384914,1744031439904,-999.0,0.00043,120]
[357384915,1744031439913,-5000.0,0.00043,3]
[357384916,1744031439922,-156.6174458,0.00043216,30]
[357384917,1744031439933,-151.0,0.00043248,120]
[357384918,1744031439942,-186.725737,0.00043248,120]
[357384919,1744031439951,-186.725737,0.00043248,120]
[357384920,1744031439961,-151.0,0.00043248,120]
[357384921,1744031439970,-151.0,0.00043248,120]
[357384922,1744031439980,-151.0,0.000435,14]
[357384923,1744031439989,-500.0,0.00043686,30]
[357384924,1744031439998,-783.73948285,0.00043693,2]
[357384925,1744031440007,-151.0,0.000437,13]
[357384926,1744031440016,-2200.0,0.00043724,14]
[357384927,1744031440026,-419.36665037,0.00043843,3]
[357384928,1744031440036,-1000.0,0.00043852,120]
[357384929,1744031440045,-500.0,0.00043873,10]
[357384930,1744031440055,-500.0,0.00043873,10]
[357384931,1744031440064,-500.74568918,0.00043873,10]
[357384932,1744031440072,-160.0,0.0004388,3]
[357384933,1744031440082,-160.0,0.0004388,10]
[357384935,1744031440091,-984.0,0.0004388,120]
[357384936,1744031440101,-8752.07553825,0.0004389,3]
[357384937,1744031440111,-151.0,0.00043899,2]
[357384939,1744031440121,-5612.92813162,0.000439,30]
[357384940,1744031440131,-1852.84,0.000439,30]
[357384941,1744031440140,-5480.26,0.000439,30]
[357384942,1744031440150,-15338.93,0.000439,30]
[357384943,1744031440159,-13357.27,0.000439,30]
[357384944,1744031440168,-173.773829,0.000439,120]
[357384945,1744031440180,-173.773829,0.000439,120]
[357384946,1744031440190,-151.0,0.000439,120]
[357384947,1744031440200,-151.0,0.000439,30]
[357384948,1744031440209,-151.0,0.000439,30]
[357384949,1744031440218,-151.0,0.000439,120]
[357384950,1744031440227,-151.0,0.000439,120]
[357384951,1744031440236,-151.0,0.000439,120]
[357384952,1744031440245,-151.0,0.000439,120]
[357384953,1744031440254,-310.734448,0.000439,120]
[357384954,1744031440263,-310.734448,0.000439,120]
[357384955,1744031440272,-310.734448,0.000439,120]
[357384956,1744031440281,-310.734448,0.000439,120]
[357384958,1744031440290,-151.0,0.000439,120]
[357384960,1744031440299,-151.0,0.000439,120]
[357384962,1744031440308,-151.0,0.000439,120]
[357384963,1744031440317,-151.0,0.000439,120]
[357384964,1744031440326,-186.725737,0.000439,120]
[357384965,1744031440336,-186.725737,0.000439,120]
[357384966,1744031440345,-186.725737,0.000439,120]
[357384967,1744031440355,-186.725737,0.000439,120]
[357384968,1744031440364,-151.0,0.000439,120]
[357384969,1744031440374,-151.0,0.000439,120]
[357384970,1744031440384,-151.0,0.000439,120]
[357384971,1744031440394,-161.464384,0.000439,120]
[357384972,1744031440403,-160.0,0.000439,30]
[357384973,1744031440412,-151.0,0.000439,11]
[357384974,1744031440422,-500.0,0.00043973,10]
[357384975,1744031440434,-500.0,0.00043973,10]
[357384976,1744031440446,-500.0,0.00043973,10]
[357384977,1744031440455,-514.54664532,0.00043973,10]
[357384978,1744031440464,-500.0,0.00043973,10]
[357384979,1744031440475,-500.0,0.00043973,10]
[357384980,1744031440484,-603.86205554,0.00043973,10]
[357384981,1744031440494,-500.0,0.00043973,10]
[357384982,1744031440503,-500.0,0.00043973,10]
[357384983,1744031440513,-500.0,0.00043973,10]
[357384984,1744031440525,-500.0,0.00043973,10]
[357384985,1744031440534,-512.52789917,0.00043973,10]
[357384986,1744031440543,-500.0,0.00043973,10]
[357384987,1744031440552,-200.0,0.00043974,2]
[357384988,1744031440561,-2197.345,0.0004398,2]
[357384989,1744031440570,-70016.604306,0.0004399,3]
[357384990,1744031440579,-5000.0,0.00044,3]
[357384991,1744031440588,-1000.0,0.00044,5]
[357384992,1744031440598,-42465.42654008,0.00044,2]
[357385015,1744031444413,-263.26593272,0.0003,30]
[357385017,1744031444474,-510.39906728,0.0003,30]
[357385018,1744031444483,-237.95575523,0.000399,15]
[357385019,1744031444494,-338.557,0.00041391,60]
[357385021,1744031444503,-237.95575497,0.00041797,16]
[357385022,1744031444512,-9677.3336365,0.00042003,10]
[357385023,1744031444528,-914.1,0.00042003,10]
[357385046,1744031446371,-706.56680688,0.00042003,10]
[357385054,1744031837138,-783.73948285,0.00028,10]
[357385055,1744031982413,6160.474,0.0003,10]
[357385056,1744032045308,3163.4279404,0.0003,30]
[357385067,1744032152060,29323.56260537,0.00028,14]
[357385125,1744032485945,-500.0,0.00024899,2]
[357385134,1744032497647,500.0,0.0003,10]
[357385141,1744032527825,644.976157,0.0002,120]
[357385144,1744032529659,2762.75978427,0.00028,60]
[357385145,1744032530898,495.25572931,0.00025,120]
[357385161,1744032553743,-272.86952097,0.000329,10]
[357385162,1744032553767,-27.13047903,0.00034348,11]
[357385170,1744032557101,-245.7390417,0.00034348,11]
[357385171,1744032557123,-54.2609583,0.00034728,12]
[357385187,1744032603942,-211.62254538,0.00024899,2]
[357385188,1744032612673,-182.80942083,0.000259,6]
[357385189,1744032624538,1517.0,0.00025,28]
[357385191,1744032631155,182.80942083,0.0003,10]
[357385197,1744032631984,-186.92266443,0.00024899,2]
[357385219,1744032632426,-5980.64428601,0.00024899,2]
[357385220,1744032632436,-164.02670297,0.000259,6]
[357385221,1744032632446,-346.83612378,0.00026934,7]
[357385222,1744032632456,-300.0,0.00026999,2]
[357385223,1744032632466,-700.0,0.00027,2]
[357385224,1744032632476,-346.83612378,0.00027969,7]
[357385225,1744032632485,-800.0,0.00029,3]
[357385227,1744032632495,-346.83612378,0.00029003,8]
[357385229,1744032632504,-208.60419744,0.00029694,2]
[357385231,1744032632514,-346.83612378,0.00030038,9]
[357385234,1744032632525,-820.0,0.00031,4]
[357385237,1744032632534,-346.83612378,0.00031072,9]
[357385240,1744032632543,-346.83612378,0.00032107,10]
[357385242,1744032632553,-346.83612378,0.00033141,11]
[357385244,1744032632563,-346.83612378,0.00034176,11]
[357385245,1744032632572,-196.725891,0.00034671,2]
[357385246,1744032632582,-1275.0716195,0.00034728,12]
[357385247,1744032632592,-2790.44236172,0.0003487,4]
[357385248,1744032632602,-10562.47343699,0.00035,2]
[357385249,1744032632612,-339.36098588,0.0003514,2]
[357385250,1744032632621,-577.6081125,0.00035155,2]
[357385251,1744032632631,-346.83612378,0.0003521,12]
[357385252,1744032632641,-160.0,0.00035885,2]
[357385253,1744032632653,-160.0,0.00035885,2]
[357385254,1744032632664,-537.40128,0.0003589,2]
[357385255,1744032632674,-346.83612378,0.00036245,13]
[357385256,1744032632685,-346.83612378,0.00037279,13]
[357385257,1744032632694,-500.0,0.00037441,120]
[357385258,1744032632705,-231.70101423,0.00037731,2]
[357385259,1744032632715,-204.35,0.000379,31]
[357385260,1744032632724,-204.35,0.000379,31]
[357385261,1744032632734,-204.35,0.000379,31]
[357385262,1744032632744,-204.35,0.000379,31]
[357385263,1744032632754,-204.35,0.000379,31]
[357385264,1744032632764,-204.35,0.000379,31]
[357385265,1744032632774,-204.35,0.000379,31]
[357385266,1744032632784,-204.35,0.000379,31]
[357385267,1744032632795,-204.35,0.000379,31]
[357385268,1744032632806,-204.35,0.000379,31]
[357385269,1744032632817,-204.35,0.000379,31]
[357385270,1744032632827,-204.35,0.000379,31]
[357385271,1744032632838,-346.83612378,0.00038314,14]
[357385272,1744032632850,-500.0,0.00038414,120]
[357385273,1744032632865,-543.0,0.00038791,2]
[357385274,1744032632880,-1003.0,0.00038791,2]
[357385275,1744032632891,-2255.0,0.00038791,2]
[357385276,1744032632905,-401.0,0.00038791,2]
[357385277,1744032632915,-2600.75,0.00039,120]
[357385278,1744032632924,-285.132,0.00039,53]
[357385279,1744032632934,-346.83612378,0.00039348,15]
[357385280,1744032632944,-2726.71,0.00039519,2]
[357385281,1744032632955,-2726.71,0.00039999,2]
[357385282,1744032632964,-500.0,0.00039999,31]
[357385283,1744032632974,-535.69465969,0.00039999,31]
[357385284,1744032632984,-500.0,0.00039999,31]
[357385285,1744032632994,-593.70777499,0.00039999,2]
[357385286,1744032633004,-500.0,0.00039999,31]
[357385287,1744032633014,-162.30524046,0.00039999,31]
[357385288,1744032633024,-18206.55001438,0.0004,3]
[357385289,1744032633034,-6000.0,0.0004,120]
[357385290,1744032633044,-999.999999,0.0004,120]
[357385291,1744032633056,-346.83612378,0.00040383,15]
[357385292,1744032633066,-188.97365902,0.00040832,2]
[357385293,1744032633076,-4259.64918807,0.00040915,3]
[357385294,1744032634787,-199.12728908,0.00040924,120]
[357385315,1744032638511,-200.0,0.000409,2]
[357385316,1744032638520,-21996.57742663,0.00040915,3]
[357385317,1744032638530,-70016.604306,0.00040915,3]
[357385318,1744032638540,-300.87271092,0.00040924,120]
[357385319,1744032638550,-500.0,0.00040924,120]
[357385320,1744032638559,-469.71123885,0.00040924,120]
[357385321,1744032638569,-40599.81875112,0.00040925,3]
[357385322,1744032638578,-20116.41556646,0.00040925,2]
[357385323,1744032638594,-7026.78725694,0.00040925,2]
[357385324,1744032638676,-59445.72502522,0.00040925,2]
[357385325,1744032638685,-370000.0,0.00040925,2]
[357385326,1744032638696,-359.9796305,0.00040932,30]
[357385327,1744032638706,-359.9796305,0.00040932,30]
[357385328,1744032638717,-359.9796305,0.00040932,30]
[357385329,1744032638726,-359.9796305,0.00040932,30]
[357385330,1744032638736,-719.959261,0.00040932,30]
[357385331,1744032638746,-160.0,0.00040971,30]
[357385332,1744032638756,-500.0,0.00040973,2]
[357385333,1744032638766,-500.0,0.00040973,5]
[357385334,1744032638775,-210.43057469,0.00040973,5]
[357385335,1744032638786,-500.0,0.00040973,5]
[357385336,1744032638795,-500.0,0.00040973,5]
[357385337,1744032638806,-500.0,0.00040973,5]
[357385338,1744032638815,-500.0,0.00040973,5]
[357385339,1744032638825,-2726.71,0.00040978,2]
[357385340,1744032638835,-7037.99941891,0.0004099,2]
[357385341,1744032638845,-600.29159519,0.00041,60]
[357385342,1744032638858,-14494.15090734,0.00041015,3]
[357385353,1744032640962,-288.37745462,0.00041015,3]
[357385379,1744032643706,-1442.40155782,0.00041015,3]
[357385394,1744032647840,-1279.22115672,0.00041015,3]
[357385395,1744032647850,-160.0,0.00041024,30]
[357385396,1744032647861,-36825.01013575,0.00041025,7]
[357385397,1744032647871,-36825.01013575,0.00041025,7]
[357385398,1744032647884,-5499.44678098,0.00041025,7]
[357385399,1744032647894,-3158.38348077,0.00041025,7]
[357385400,1744032647909,-3158.38348077,0.00041025,7]
[357385401,1744032647918,-359.9796305,0.00041055,30]
[357385402,1744032647928,-301.73,0.00041063,3]
[357385403,1744032647938,-208.46,0.0004107,120]
[357385404,1744032647948,-2001.0,0.0004107,120]
[357385405,1744032647958,-500.0,0.00041073,5]
[357385406,1744032647968,-500.0,0.00041073,5]
[357385407,1744032647978,-376.19878293,0.00041073,5]
[357385408,1744032647988,-500.0,0.00041073,5]
[357385409,1744032647998,-500.0,0.00041073,5]
[357385410,1744032648009,-500.0,0.00041073,5]
[357385411,1744032648018,-501.11557002,0.00041073,5]
[357385412,1744032648028,-500.0,0.00041073,5]
[357385413,1744032648039,-500.0,0.00041073,5]
[357385414,1744032648049,-500.0,0.00041073,5]
[357385415,1744032648058,-500.0,0.00041073,5]
[357385416,1744032648068,-500.0,0.00041073,5]
[357385417,1744032648078,-500.0,0.00041073,5]
[357385418,1744032648088,-150.5,0.0004108,120]
[357385419,1744032648098,-2001.0,0.0004108,120]
[357385420,1744032648108,-150.5,0.0004109,120]
[357385421,1744032648118,-2001.0,0.0004109,120]
[357385422,1744032648129,-537.40128,0.00041211,120]
[357385423,1744032648139,-204.35,0.000414,31]
[357385424,1744032648149,-204.35,0.000414,31]
[357385425,1744032648161,-204.35,0.000414,31]
[357385426,1744032648172,-204.35,0.000414,31]
[357385427,1744032648182,-204.35,0.000414,31]
[357385428,1744032648193,-204.35,0.000414,31]
[357385429,1744032648202,-204.35,0.000414,31]
[357385430,1744032648212,-204.35,0.000414,31]
[357385431,1744032648222,-204.35,0.000414,31]
[357385432,1744032648231,-204.35,0.000414,31]
[357385433,1744032648241,-204.35,0.000414,31]
[357385434,1744032648251,-204.35,0.000414,31]
[357385435,1744032648261,-204.35,0.000414,31]
[357385436,1744032648271,-204.35,0.000414,31]
[357385437,1744032648280,-204.35,0.000414,31]
[357385438,1744032648290,-204.35,0.000414,31]
[357385439,1744032648300,-204.35,0.000414,31]
[357385440,1744032648310,-204.35,0.000414,31]
[357385441,1744032648319,-204.35,0.000414,31]
[357385442,1744032648329,-204.35,0.000414,31]
[357385443,1744032648339,-204.35,0.000414,31]
[357385444,1744032648348,-204.35,0.000414,31]
[357385445,1744032648358,-204.35,0.000414,31]
[357385446,1744032648368,-204.35,0.000414,31]
[357385447,1744032648378,-346.83612378,0.00041417,16]
[357385448,1744032648388,-219.5203855,0.00041644,10]
[357385449,1744032648398,-2255.0,0.00041791,2]
[357385450,1744032648411,-321.984,0.00041791,2]
[357385451,1744032648421,-8752.07553825,0.00041828,3]
[357385452,1744032648431,-12500.0,0.00041829,10]
[357385453,1744032648441,-12500.0,0.00041838,10]
[357385454,1744032648452,-12500.0,0.00041847,10]
[357385455,1744032648462,-8752.07553825,0.00041854,3]
[357385456,1744032648472,-12500.0,0.00041855,10]
[357385457,1744032648483,-6681.61397214,0.00041864,10]
[357385458,1744032648527,475.30011905,0.0003,10]
[357385459,1744032655761,-370.67257768,0.0004,120]
[357385460,1744032656439,-129.32742232,0.0004,120]
[357385461,1744032656463,-241.34515536,0.00040824,28]
[357385462,1744032663349,608.76240009,0.0003,10]
[357385463,1744032686118,7721.53,0.0003,10]
[357386201,1744033448339,-182.80942083,0.0003635,120]
[357386269,1744033492693,-176.28884052,0.00035,12]
[357386277,1744033626566,13296.99150777,0.00027541,15]
[357386340,1744033832578,-500.0,0.00027397,5]
[357386341,1744033832588,-39.76999792,0.00033259,2]
[357386343,1744033832600,-159.35729118,0.00033259,2]
[357386345,1744033832610,-1590.3382154,0.00033383,2]
[357386347,1744033832619,-656.29837822,0.000349,2]
[357386349,1744033832629,-662.52149843,0.000349,12]
[357386351,1744033832639,-177.0,0.00034998,2]
[357386353,1744033832648,-4979.7,0.00034999,2]
[357386355,1744033832658,-500.0,0.00034999,7]
[357386356,1744033832668,-500.0,0.00034999,7]
[357386359,1744033832678,-500.0,0.00034999,7]
[357386362,1744033832687,-500.0,0.00034999,7]
[357386365,1744033832697,-500.0,0.00034999,7]
[357386368,1744033832707,-500.0,0.00034999,7]
[357386371,1744033832716,-500.0,0.00034999,7]
[357386373,1744033832727,-500.0,0.00034999,7]
[357386376,1744033832737,-500.0,0.00034999,7]
[357386378,1744033832747,-500.0,0.00034999,7]
[357386380,1744033832756,-500.0,0.00034999,7]
[357386382,1744033832772,-500.0,0.00034999,7]
[357386384,1744033832781,-500.0,0.00034999,7]
[357386387,1744033832792,-500.0,0.00034999,7]
[357386389,1744033832802,-500.0,0.00034999,7]
[357386391,1744033832813,-500.0,0.00034999,7]
[357386393,1744033832823,-500.0,0.00034999,7]
[357386395,1744033832833,-500.0,0.00034999,7]
[357386397,1744033832843,-500.0,0.00034999,7]
[357386399,1744033832853,-500.0,0.00034999,7]
[357386401,1744033832863,-500.0,0.00034999,7]
[357386403,1744033832873,-500.0,0.00034999,7]
[357386405,1744033832885,-500.0,0.00034999,7]
[357386407,1744033832895,-500.0,0.00034999,7]
[357386409,1744033832906,-500.0,0.00034999,7]
[357386411,1744033832915,-500.0,0.00034999,7]
[357386413,1744033832925,-500.0,0.00034999,7]
[357386415,1744033832935,-500.0,0.00034999,7]
[357386417,1744033832946,-500.0,0.00034999,7]
[357386419,1744033832956,-500.0,0.00034999,7]
[357386421,1744033832966,-500.0,0.00034999,7]
[357386423,1744033832976,-500.0,0.00034999,7]
[357386425,1744033832986,-500.0,0.00034999,7]
[357386427,1744033832996,-500.0,0.00034999,7]
[357386429,1744033833006,-500.0,0.00034999,7]
[357386431,1744033833024,-500.0,0.00034999,7]
[357386433,1744033833036,-500.0,0.00034999,7]
[357386435,1744033833047,-500.0,0.00034999,7]
[357386437,1744033833059,-500.0,0.00034999,7]
[357386439,1744033833071,-500.0,0.00034999,7]
[357386440,1744033833081,-198.0,0.00034999,7]
[357386441,1744033833092,-500.0,0.00034999,7]
[357386442,1744033833103,-500.0,0.00034999,7]
[357386443,1744033833115,-500.0,0.00034999,7]
[357386444,1744033833125,-500.0,0.00034999,2]
[357386446,1744033833136,-500.0,0.00034999,7]
[357386447,1744033833147,-500.0,0.00034999,7]
[357386448,1744033833157,-500.0,0.00034999,7]
[357386449,1744033833166,-500.0,0.00034999,7]
[357386450,1744033833176,-500.0,0.00034999,7]
[357386451,1744033833187,-500.0,0.00034999,7]
[357386452,1744033833197,-500.0,0.00034999,7]
[357386453,1744033833207,-500.0,0.00034999,7]
[357386454,1744033833216,-400.0,0.00034999,7]
[357386455,1744033833226,-500.0,0.00034999,7]
[357386456,1744033833236,-500.0,0.00034999,7]
[357386457,1744033833248,-500.0,0.00034999,7]
[357386458,1744033833260,-500.0,0.00034999,7]
[357386459,1744033833275,-500.0,0.00034999,7]
[357386460,1744033833287,-500.0,0.00034999,7]
[357386461,1744033833297,-500.0,0.00034999,7]
[357386462,1744033833307,-116.11866085,0.00034999,7]
[357386482,1744033838596,-383.88133915,0.00034999,7]
[357386483,1744033838606,-500.0,0.00034999,7]
[357386484,1744033838615,-500.0,0.00034999,7]
[357386485,1744033838625,-500.0,0.00034999,7]
[357386486,1744033838635,-1002.0,0.00035,10]
[357386487,1744033838645,-78923.85931625,0.00035,12]
[357386488,1744033838654,-500.0,0.00035073,5]
[357386489,1744033838664,-500.0,0.00035073,5]
[357386490,1744033838673,-504.38089535,0.00035073,2]
[357386491,1744033838683,-662.52149842,0.0003559,12]
[357386492,1744033838693,-483.661152,0.0003589,2]
[357386493,1744033838702,-3494.81146509,0.000362,98]
[357386494,1744033838711,-662.52149842,0.00036279,13]
[357386495,1744033838721,-12.89479617,0.0003635,120]
[357386496,1744033838730,-1038.6975275,0.0003635,2]
[357386497,1744033838740,-630.97036704,0.000365,120]
[357386498,1744033838750,-662.52149842,0.00036969,13]
[357386499,1744033838759,-283.347197,0.00037032,2]
[357386500,1744033838771,-662.52149842,0.00037659,14]
[357386501,1744033838780,-3494.81146509,0.00037831,107]
[357386502,1744033838790,-152.21,0.000379,31]
[357386504,1744033838799,-152.21,0.000379,31]
[357386506,1744033838809,-152.21,0.000379,31]
[357386507,1744033838818,-152.21,0.000379,31]
[357386509,1744033838828,-152.21,0.000379,31]
[357386510,1744033838838,-152.21,0.000379,31]
[357386511,1744033838847,-152.21,0.000379,31]
[357386512,1744033838857,-152.21,0.000379,31]
[357386513,1744033838866,-152.21,0.000379,31]
[357386514,1744033838875,-152.21,0.000379,31]
[357386515,1744033838885,-152.21,0.000379,31]